Workbook

Sheet Sheet5
E4: m | H4: 100
H5: =4 -> 4
E6: losses | F6: 400 | H6: =H5*H4 -> 400
E7: h_out | F7: =D17-F6 -> 19344.61811
C14: P = | D14: 1 | F14: 50 | H14: P = | I14: =D14-F14/1000 -> 0.95 | N14: P = | O14: 1.15
C15: T = | D15: =T_sat(21,D14) -> 77.25097871 | H15: T = | I15: =T_P_H_(21,I14, I16) -> 76.81906571 | N15: T = | O15: =T_P_H_(21,O14, O16) -> 78.45490497
C16: h_in = | D16: =H_(21,D14,D15) -> 77.42987494 | H16: h_out = | I16: =I17/F21 -> 75.86124749 | N16: h_out = | O16: =I16 -> 75.86124749
C17: Power input = | D17: =D16*F21 -> 19744.61811 | H17: Power output = | I17: =D17-F24 -> 19344.61811
F21: 255 | H21: Tsat | I21: =T_sat(21,I14) -> 76.81906571 | N21: Tsat | O21: =T_sat(21,O14) -> 78.45490497
F22: 4 | H22: H_liq | I22: =H_(21,I14,I21-0.01) -> -122.2616678 | J22: 79.6 | K22: =I22-J22 -> -201.8616678 | N22: H_liq | O22: =H_(21,O14,O21-0.001) -> -118.8532042 | P22: 79.6 | Q22: =O22-P22 -> -198.4532042
F23: 100 | H23: H_Gas | I23: =H_(21,I14,I21+0.01) -> 77.10925076 | J23: 44.3 | K23: =I23-J23 -> 32.80925076 | N23: H_Gas | O23: =H_(21,O14,O21+0.001) -> 78.33740829 | P23: 44.3 | Q23: =O23-P23 -> 34.03740829
F24: =F22*F23 -> 400 | H24: x=(H-Hg)/(Hl-Hg) | I24: =(I16-I23)/(I22-I23) -> 0.006259705672 | N24: x=(H-Hg)/(Hl-Hg) | O24: =(O16-O23)/(O22-O23) -> 0.01255719411
H25: Rho_liq | I25: =Rho(21,I14,I21-0.01) -> 811.0674103 | J25: g/L | N25: Rho_liq | O25: =Rho(21,O14,O21-0.01) -> 803.5382294 | P25: g/L
H26: Rho_gas | I26: =Rho(21,I14,I21+0.01) -> 4.344792981 | J26: g/L | N26: Rho_gas | O26: =Rho(21,O14,O21+0.01) -> 5.181960989 | P26: g/L
H27: m_liq | I27: =(1-I24)*F21 -> 253.4037751 | J27: g/s | K27: =I27/(I27+I28) -> 0.9937402943 | N27: m_liq | O27: =(1-O24)*L21 -> 0 | P27: g/s | Q27: =O27/(O27+O28) -> 
H28: m_gas | I28: =I24*F21 -> 1.596224946 | J28: g/s | K28: =I28/(I28+I27) -> 0.006259705672 | N28: m_gas | O28: =O24*L21 -> 0 | P28: g/s | Q28: =O28/(O28+O27) -> 
H29: Q_liq | I29: =(1-I24)*F21/I25*3.6 -> 1.124756806 | J29: m3/h | K29: =I29/(I29+I30) -> 0.4595808097 | N29: Q_liq | O29: =(1-O24)*L21/O25*3.6 -> 0 | P29: m3/h | Q29: =O29/(O29+O30) -> 
H30: Q_gas | I30: =(I24)*F21/I26*3.6 -> 1.322596918 | J30: m3/h | K30: =I30/(I30+I29) -> 0.5404191903 | N30: Q_gas | O30: =(O24)*L21/O26*3.6 -> 0 | P30: m3/h | Q30: =O30/(O30+O29) -> 

Sheet Property HePak
A1: HePak Spreadsheet Example
A2: Using HeCalc, HeProperty, HeUnit and HeInput
A3: Try new input values (shown in red)
C5: Thermodynamic state definition
C6: Input 1 | D6: Input 2 | E6: Validate
B7: Index | C7: 1 | D7: 2 | E7: =[8]!heProperty(Input2) -> Temperature
B8: Name | C8: =[8]!heProperty(Input1) -> Pressure | D8: =[8]!heProperty(Input2) -> Temperature
B9: Value | C9: =1.2*10^5 -> 120000 | D9: 4.3 | E9: Unit System | F9: 1
B10: Units | C10: =[8]!heunit(Input1,Units) -> [Pa] | D10: =[8]!heunit(Input2,Units) -> [K]
B12: 2 | C12: Error Message
B13: 3
B15: Property | C15: Property | E15: Property
B16: Index | C16: Name | D16: Value | E16: Units
B17: 0 | C17: =[8]!heProperty(B17) -> Quality | D17: =[8]!HeCalc(B17,0,Input1,Value1,Input2,Value2,Units) -> -1 | E17: =[8]!heunit(B17,Units) -> [-] | H17: =D17 -> -1
B18: 1 | C18: =[8]!heProperty(B18) -> Pressure | D18: =[8]!HeCalc(B18,0,Input1,Value1,Input2,Value2,Units) -> 120000 | E18: =[8]!heunit(B18,Units) -> [Pa]
B19: 2 | C19: =[8]!heProperty(B19) -> Temperature | D19: =[8]!HeCalc(B19,0,Input1,Value1,Input2,Value2,Units) -> 4.3 | E19: =[8]!heunit(B19,Units) -> [K]
B20: 3 | C20: =[8]!heProperty(B20) -> Density | D20: =[8]!HeCalc(B20,0,Input1,Value1,Input2,Value2,Units) -> 124.1683033 | E20: =[8]!heunit(B20,Units) -> [kg/m3]
B21: 4 | C21: =[8]!heProperty(B21) -> Specific Volume | D21: =[8]!HeCalc(B21,0,Input1,Value1,Input2,Value2,Units) -> 0.008053585118 | E21: =[8]!heunit(B21,Units) -> [m3/kg]
B22: 5 | C22: =[8]!heProperty(B22) -> Z = PV/RT | D22: =[8]!HeCalc(B22,0,Input1,Value1,Input2,Value2,Units) -> 0.1081973097 | E22: =[8]!heunit(B22,Units) -> [-]
B23: 6 | C23: =[8]!heProperty(B23) -> DPTSat | D23: =[8]!HeCalc(B23,0,Input1,Value1,Input2,Value2,Units) -> 0 | E23: =[8]!heunit(B23,Units) -> [Pa/K]
B24: 7 | C24: =[8]!heProperty(B24) -> Latent Heat | D24: =[8]!HeCalc(B24,0,Input1,Value1,Input2,Value2,Units) -> 0 | E24: =[8]!heunit(B24,Units) -> [J/kg]
B25: 8 | C25: =[8]!heProperty(B25) -> Entropy | D25: =[8]!HeCalc(B25,0,Input1,Value1,Input2,Value2,Units) -> 3641.112501 | E25: =[8]!heunit(B25,Units) -> [J/kg-K]
B26: 9 | C26: =[8]!heProperty(B26) -> Enthalpy | D26: =[8]!HeCalc(B26,0,Input1,Value1,Input2,Value2,Units) -> 10450.7656 | E26: =[8]!heunit(B26,Units) -> [J/kg] | I26: 9407.923752
B27: 10 | C27: =[8]!heProperty(B27) -> Helmholtz | D27: =[8]!HeCalc(B27,0,Input1,Value1,Input2,Value2,Units) -> -6172.448375 | E27: =[8]!heunit(B27,Units) -> [J/kg]
B28: 11 | C28: =[8]!heProperty(B28) -> Internal Energy | D28: =[8]!HeCalc(B28,0,Input1,Value1,Input2,Value2,Units) -> 9484.335381 | E28: =[8]!heunit(B28,Units) -> [J/kg]
B29: 12 | C29: =[8]!heProperty(B29) -> Gibbs Energy | D29: =[8]!HeCalc(B29,0,Input1,Value1,Input2,Value2,Units) -> -5206.018161 | E29: =[8]!heunit(B29,Units) -> [J/kg]
B30: 13 | C30: =[8]!heProperty(B30) -> Res. for Fugacity | D30: =[8]!HeCalc(B30,0,Input1,Value1,Input2,Value2,Units) -> 0
B31: 14 | C31: =[8]!heProperty(B31) -> Cp | D31: =[8]!HeCalc(B31,0,Input1,Value1,Input2,Value2,Units) -> 5425.147063 | E31: =[8]!heunit(B31,Units) -> [J/kg-K]
B32: 15 | C32: =[8]!heProperty(B32) -> Cv | D32: =[8]!HeCalc(B32,0,Input1,Value1,Input2,Value2,Units) -> 2559.690662 | E32: =[8]!heunit(B32,Units) -> [J/kg-K]
B33: 16 | C33: =[8]!heProperty(B33) -> Gamma | D33: =[8]!HeCalc(B33,0,Input1,Value1,Input2,Value2,Units) -> 2.119454176 | E33: =[8]!heunit(B33,Units) -> [-]
B34: 17 | C34: =[8]!heProperty(B34) -> Expansivity | D34: =[8]!HeCalc(B34,0,Input1,Value1,Input2,Value2,Units) -> 0.9153794037 | E34: =[8]!heunit(B34,Units) -> [TdV/VdT]
B35: 18 | C35: =[8]!heProperty(B35) -> Gruneisen | D35: =[8]!HeCalc(B35,0,Input1,Value1,Input2,Value2,Units) -> 1.222940097 | E35: =[8]!heunit(B35,Units) -> [-]
B36: 19 | C36: =[8]!heProperty(B36) -> Compressibility | D36: =[8]!HeCalc(B36,0,Input1,Value1,Input2,Value2,Units) -> 5.47683006e-07 | E36: =[8]!heunit(B36,Units) -> [1/Pa] | I36: =[8]!HeCalc(19,0,1,Value1,2,Value2,1) -> 5.47683006e-07
B37: 20 | C37: =[8]!heProperty(B37) -> Sound Velocity | D37: =[8]!HeCalc(B37,0,Input1,Value1,Input2,Value2,Units) -> 176.5395477 | E37: =[8]!heunit(B37,Units) -> [m/s] | I37: =[8]!HeCalc(20,0,1,P,2,T,1) -> 
B38: 21 | C38: =[8]!heProperty(B38) -> JT Coefficient | D38: =[8]!HeCalc(B38,0,Input1,Value1,Input2,Value2,Units) -> -1.256185625e-07 | E38: =[8]!heunit(B38,Units) -> [K/Pa]
B39: 22 | C39: =[8]!heProperty(B39) -> dPdD|T | D39: =[8]!HeCalc(B39,0,Input1,Value1,Input2,Value2,Units) -> 14704.82931 | E39: =[8]!heunit(B39,Units) -> [Pa-m3/kg]
B40: 23 | C40: =[8]!heProperty(B40) -> dPdT|D | D40: =[8]!HeCalc(B40,0,Input1,Value1,Input2,Value2,Units) -> 388690.0429 | E40: =[8]!heunit(B40,Units) -> [Pa/K]
B41: 24 | C41: =[8]!heProperty(B41) -> V*dHdV|P | D41: =[8]!HeCalc(B41,0,Input1,Value1,Input2,Value2,Units) -> 25484.65945 | E41: =[8]!heunit(B41,Units) -> [J/kg]
B42: 25 | C42: =[8]!heProperty(B42) -> Viscosity | D42: =[8]!HeCalc(B42,0,Input1,Value1,Input2,Value2,Units) -> 3.158329174e-06 | E42: =[8]!heunit(B42,Units) -> [Pa-s]
B43: 26 | C43: =[8]!heProperty(B43) -> Conductivity | D43: =[8]!HeCalc(B43,0,Input1,Value1,Input2,Value2,Units) -> 0.01881287154 | E43: =[8]!heunit(B43,Units) -> [W/m-K] | I43: =lambda_(11,1,300) -> 0.1559733028
B44: 27 | C44: =[8]!heProperty(B44) -> Prandtl # | D44: =[8]!HeCalc(B44,0,Input1,Value1,Input2,Value2,Units) -> 0.9107806964 | E44: =[8]!heunit(B44,Units) -> [-]
B45: 28 | C45: =[8]!heProperty(B45) -> Thermal Diff | D45: =[8]!HeCalc(B45,0,Input1,Value1,Input2,Value2,Units) -> 2.792754934e-08 | E45: =[8]!heunit(B45,Units) -> [m2/s]
B46: 29 | C46: =[8]!heProperty(B46) -> Surface Tension | D46: =[8]!HeCalc(B46,0,Input1,Value1,Input2,Value2,Units) -> 0 | E46: =[8]!heunit(B46,Units) -> [N/m]
B47: 30 | C47: =[8]!heProperty(B47) -> Dielectric - 1 | D47: =[8]!HeCalc(B47,0,Input1,Value1,Input2,Value2,Units) -> 0.04863378797 | E47: =[8]!heunit(B47,Units) -> [-]
B48: 31 | C48: =[8]!heProperty(B48) -> Refraction - 1 | D48: =[8]!HeCalc(B48,0,Input1,Value1,Input2,Value2,Units) -> 0.02403140065 | E48: =[8]!heunit(B48,Units) -> [-]
B49: 32 | C49: =[8]!heProperty(B49) -> dT(P) | D49: =[8]!HeCalc(B49,0,Input1,Value1,Input2,Value2,Units) -> 0 | E49: =[8]!heunit(B49,Units) -> [K]
B50: 33 | C50: =[8]!heProperty(B50) -> dT(V) | D50: =[8]!HeCalc(B50,0,Input1,Value1,Input2,Value2,Units) -> 0 | E50: =[8]!heunit(B50,Units) -> [K]
B51: 34 | C51: =[8]!heProperty(B51) -> RhoS/Rho | D51: =[8]!HeCalc(B51,0,Input1,Value1,Input2,Value2,Units) -> 0 | E51: =[8]!heunit(B51,Units) -> [-]
B52: 35 | C52: =[8]!heProperty(B52) -> 2nd Sound Vel. | D52: =[8]!HeCalc(B52,0,Input1,Value1,Input2,Value2,Units) -> 0 | E52: =[8]!heunit(B52,Units) -> [m/s]
B53: 36 | C53: =[8]!heProperty(B53) -> 4th Sound Vel. | D53: =[8]!HeCalc(B53,0,Input1,Value1,Input2,Value2,Units) -> 0 | E53: =[8]!heunit(B53,Units) -> [m/s]
B54: 37 | C54: =[8]!heProperty(B54) -> Gorter-Mellink | D54: =[8]!HeCalc(B54,0,Input1,Value1,Input2,Value2,Units) -> 0 | E54: =[8]!heunit(B54,Units) -> [m-s/kg]
B55: 38 | C55: =[8]!heProperty(B55) -> SFTC | D55: =[8]!HeCalc(B55,0,Input1,Value1,Input2,Value2,Units) -> 0 | E55: =[8]!heunit(B55,Units) -> [W3/m5-K]
B56: 39 | C56: =[8]!heProperty(B56) -> (T-Tlambda) | D56: =[8]!HeCalc(B56,0,Input1,Value1,Input2,Value2,Units) -> 0 | E56: =[8]!heunit(B56,Units) -> [K]
B57: 40 | C57: reserved
B58: 41 | C58: =[8]!heProperty(B58) -> Lambda line | D58: Input only | E58: N/A
B59: 42 | C59: =[8]!heProperty(B59) -> Melting line | D59: Input only | E59: N/A
B60: 43 | C60: =[8]!heProperty(B60) -> Saturated liquid | D60: Input only | E60: N/A
B61: 44 | C61: =[8]!heProperty(B61) -> Saturated vapor | D61: Input only | E61: N/A

Sheet Fluides
C1: Liste des fluides disponibles
A2: 1 | B2: 1 | C2: Ammoniac | D2: C:\Program files\GaspakDemo5\NH379.gas | H2: 1
A3: 2 | B3: 2 | C3: Argon | D3: C:\Program files\GaspakDemo5\ARGON83.gas | H3: 2
A4: 3 | B4: 21 | C4: Nitrogen | D4: C:\Program files\GaspakDemo5\N273.gas | H4: 21
A5: 4 | B5: 22 | C5: Nitrogen | D5: C:\Program files\GaspakDemo5\N286.gas | H5: 22
A6: 5 | B6: 4 | C6: Butane Normal | D6: C:\Program files\GaspakDemo5\NORB86.gas | H6: 4
A7: 6 | B7: 7 | C7: Deutérium | D7: C:\Program files\GaspakDemo5\D286.gas | H7: 7
A8: 7 | B8: 5 | C8: Dioxide de carbone | D8: C:\Program files\GaspakDemo5\CO289.gas | H8: 5
A9: 8 | B9: 27 | C9: Eau | D9: C:\Program files\GaspakDemo5\H2O89.gas | H9: 27
A10: 9 | B10: 8 | C10: Ethane | D10: C:\Program files\GaspakDemo5\C2H686.gas | H10: 8
A11: 10 | B11: 9 | C11: Ethylène | D11: C:\Program files\GaspakDemo5\C2H481.gas | H11: 9
A12: 11 | B12: 10 | C12: Ethylène | D12: C:\Program files\GaspakDemo5\C2H486.gas | H12: 10
A13: 12 | B13: 11 | C13: Helium | D13: C:\Program files\GaspakDemo5\HE89.gas | H13: 11
A14: 13 | B14: 16 | C14: Hydrogen Sulfide | D14: C:\Program files\GaspakDemo5\H2S93.gas | H14: 16
A15: 14 | B15: 3 | C15: Isobutane | D15: C:\Program files\GaspakDemo5\ISOB86.gas | H15: 3
A16: 15 | B16: 17 | C16: Krypton | D16: C:\Program files\GaspakDemo5\KR90.gas | H16: 17
A17: 16 | B17: 18 | C17: Methane | D17: C:\Program files\GaspakDemo5\METH86.gas | H17: 18
A18: 17 | B18: 19 | C18: Methane | D18: C:\Program files\GaspakDemo5\CH489.gas | H18: 19
A19: 18 | B19: 6 | C19: Monoxide de carbone | D19: C:\Program files\GaspakDemo5\CO85.gas | H19: 6
A20: 19 | B20: 20 | C20: Néon | D20: C:\Program files\GaspakDemo5\NE91.gas | H20: 20
A21: 20 | B21: 23 | C21: Nitrogene Trifluoride | D21: C:\Program files\GaspakDemo5\NF380.gas | H21: 23
A22: 21 | B22: 13 | C22: Normal Hydrogene | D22: C:\Program files\GaspakDemo5\NH291.gas | H22: 13
A23: 22 | B23: 24 | C23: Oxygène | D23: C:\Program files\GaspakDemo5\O278.gas | H23: 24
A24: 23 | B24: 25 | C24: Oxygène | D24: C:\Program files\GaspakDemo5\O285.gas | H24: 25
A25: 24 | B25: 15 | C25: Hydrogène Para | D25: C:\Program files\GaspakDemo5\PH275.gas | H25: 15
A26: 25 | B26: 26 | C26: Propane | D26: C:\Program files\GaspakDemo5\C3H886.gas | H26: 26
A27: 26 | B27: 29 | C27: R11 | D27: C:\Program files\GaspakDemo5\R1191.gas | H27: 29
A28: 27 | B28: 30 | C28: R12 | D28: C:\Program files\GaspakDemo5\R1291.gas | H28: 30
A29: 28 | B29: 33 | C29: R123 | D29: C:\Program files\GaspakDemo5\R123N93.gas | H29: 33
A30: 29 | B30: 34 | C30: R124 | D30: C:\Program files\GaspakDemo5\R124N93.gas | H30: 34
A31: 30 | B31: 35 | C31: R125 | D31: C:\Program files\GaspakDemo5\R125N93.gas | H31: 35
A32: 31 | B32: 36 | C32: R134 | D32: C:\Program files\GaspakDemo5\R134AN92.gas | H32: 36
A33: 32 | B33: 37 | C33: R134 | D33: C:\Program files\GaspakDemo5\R134AT93.gas | H33: 37
A34: 33 | B34: 38 | C34: R152 | D34: C:\Program files\GaspakDemo5\R152AT94.gas | H34: 38
A35: 34 | B35: 31 | C35: R22 | D35: C:\Program files\GaspakDemo5\R2291.gas | H35: 31
A36: 35 | B36: 32 | C36: R32 | D36: C:\Program files\GaspakDemo5\R32N93.gas | H36: 32
A37: 36 | B37: 50 | C37: R32 | D37: C:\Program files\GaspakDemo5\R32N94.gas | H37: 50
A38: 37 | B38: 28 | C38: Xénon | D38: C:\Program files\GaspakDemo5\\XE90.gas | H38: 28
A39: 38 | B39: Phosphine | C39: 1.45 | D39: 10.6
A40: 39 | B40: Protoxyde d'azote | C40: 1.872 | D40: 13.6
A41: 40 | B41: R11 gaz | C41: 6.2 | D41: 10.16
A42: 41 | B42: R12 gaz | C42: 5.75 | D42: 11.99
A43: 42 | B43: R22 gaz | C43: 4.23 | D43: 11.8
A44: 43 | B44: Silane | C44: 1.36 | D44: 10.8
A45: 44 | B45: Sulfure d'hydrogène | C45: 1.45 | D45: 11.79
A46: 45 | B46: R11 liq | C46: 1500 | D46: 567.5
A47: 46 | B47: R12 liq | C47: 1350 | D47: 260
A48: 47 | B48: R22 liq | C48: 1250 | D48: 210
A49: 48 | B49: R32 liq | C49: 1000 | D49: 193.2
A50: 49 | B50: R123 liq | C50: 1500 | D50: 569.6
A51: 50 | B51: R124 liq | C51: 1400 | D51: 346
A52: 51 | B52: R125 liq | C52: 1250 | D52: 205
A53: 52 | B53: R152a liq | C53: 950 | D53: 214

Sheet Pipe diameter
A2: I/ PN10
C4: Service limit | H4: Design data*
B5: Pressure (Bar) | C5: 10 | D5: 10 | E5: 10 | F5: 10 | G5: Vacuum | H5: 10 | I5: Vacuum
B6: Temperature (°C) | C6: -273 | D6: 38 | E6: 50 | F6: 100 | G6: 20 | H6: 100 | I6: 100
B9: Diam | C9: DN | D9: D out | E9: Ep | F9: D in
B10: 3/8" | C10: 10 | D10: 17.2 | E10: 1.6 | F10: =D10-2*E10 -> 14
B11: 1/2" | C11: 15 | D11: 21.3 | E11: 1.6 | F11: 18.1
B12: 3/4" | C12: 20 | D12: 26.9 | E12: 1.6 | F12: 23.7
B13: 1" | C13: 25 | D13: 33.7 | E13: 1.6 | F13: 30.5
B14: 1"1/4 | C14: 32 | D14: 42.4 | E14: 1.6 | F14: 39.2
B15: 1"1/2 | C15: 40 | D15: 48.3 | E15: 1.6 | F15: 45.1
B16: 2" | C16: 50 | D16: 60.3 | E16: 2 | F16: 56.3
B17: 2"1/2 | C17: 65 | D17: 76.1 | E17: 2.9 | F17: 70.3
B18: 3" | C18: 80 | D18: 86.9 | E18: 3.05 | F18: 80.8
B19: 4" | C19: 100 | D19: 114.3 | E19: 6.02 | F19: 102.26
B20: 6" | C20: 150 | D20: 168.3 | E20: 7.11 | F20: 154.08
B21: 8" | C21: 200 | D21: 219.1 | E21: 8.18 | F21: 202.74
B22: 10" | C22: 250 | D22: 273 | E22: 9.27 | F22: 254.46
B23: 12" | C23: 300 | D23: 323.9 | E23: 9.53 | F23: 304.84
A25: II/ PN27
C27: Service limit | H27: Design data*
B28: Pressure (Bar) | C28: 27 | D28: 27 | E28: 27 | F28: 27 | G28: Vacuum | H28: 27 | I28: Vacuum
B29: Temperature (°C) | C29: -273 | D29: 38 | E29: 50 | F29: 100 | G29: 20 | H29: 100 | I29: 100
B32: Diam | C32: DN | D32: D out | E32: Ep | F32: D in
B33: 3/8" | C33: 10 | D33: 17.2 | E33: 1.6 | F33: =D33-2*E33 -> 14
B34: 1/2" | C34: 15 | D34: 21.3 | E34: 1.6 | F34: 18.1
B35: 3/4" | C35: 20 | D35: 26.9 | E35: 1.6 | F35: 23.7
B36: 1" | C36: 25 | D36: 33.7 | E36: 1.6 | F36: 30.5
B37: 1"1/4 | C37: 32 | D37: 42.4 | E37: 1.6 | F37: 39.2
B38: 1"1/2 | C38: 40 | D38: 48.3 | E38: 1.6 | F38: 45.1
B39: 2" | C39: 50 | D39: 60.3 | E39: 1.6 | F39: 57.1
B40: 2"1/2 | C40: 65 | D40: 76.1 | E40: 1.6 | F40: 72.9
B41: 3" | C41: 80 | D41: 86.9 | E41: 1.6 | F41: 83.7
B42: 4" | C42: 100 | D42: 114.3 | E42: 2 | F42: 110.3
B43: 6" | C43: 150 | D43: 168.3 | E43: 3.4 | F43: 161.5
B44: 8" | C44: 200 | D44: 219.1 | E44: 3.76 | F44: 211.58
B45: 10" | C45: 250 | D45: 273 | E45: 4.19 | F45: 264.62
B46: 12" | C46: 300 | D46: 323.9 | E46: 4.57 | F46: 314.76
A49: III/ Nombre de coudes
B51: 0
B52: 1
B53: 2
B54: 3
B55: 4
B56: 5
